bitfinex/quotes_BTCUSD_20230115
["timestamp","ask_amount","ask_price","bid_price","bid_amount"]
[1673814039935,1.20915593,20865.0,20864.0,0.01827431]
[1673814040207,0.99366282,20865.0,20864.0,0.01827431]
[1673814040702,1.43507996,20865.0,20864.0,0.01827431]
[1673814040949,1.79363803,20865.0,20864.0,0.01827431]
[1673814041207,1.7936524,20865.0,20864.0,0.01827431]
[1673814042517,2.4375944,20865.0,20864.0,0.01827431]
[1673814043024,2.27330282,20865.0,20864.0,0.01827431]
[1673814043274,1.98585757,20865.0,20864.0,0.01827431]
[1673814043525,2.43787305,20865.0,20864.0,0.01827431]
[1673814043776,1.63788347,20865.0,20864.0,0.01827431]
[1673814044032,1.47321247,20865.0,20864.0,0.01827431]
[1673814044533,1.68871613,20865.0,20864.0,0.01827431]
[1673814044834,1.68871613,20865.0,20864.0,0.01887431]
[1673814045334,1.54503253,20865.0,20864.0,0.01887431]
[1673814045593,1.40137165,20865.0,20864.0,0.07712013]
[1673814045853,1.68871613,20865.0,20864.0,0.07712013]
[1673814046178,1.06576192,20865.0,20864.0,0.07712013]
[1673814046626,0.85025826,20865.0,20864.0,0.07712013]
[1673814048182,1.06576192,20865.0,20864.0,0.07712013]
[1673814049330,0.85025826,20865.0,20864.0,0.07712013]
[1673814050811,1.06576192,20865.0,20864.0,0.07712013]
[1673814051329,0.85025826,20865.0,20864.0,0.07712013]
[1673814052320,1.06576192,20865.0,20864.0,0.07712013]
[1673814052839,0.85025826,20865.0,20864.0,0.07712013]
[1673814053349,1.06576192,20865.0,20864.0,0.07712013]
[1673814054846,0.85025826,20865.0,20864.0,0.07712013]
[1673814055352,1.06576192,20865.0,20864.0,0.01887431]
[1673814055599,0.92210065,20865.0,20864.0,0.01887431]
[1673814055854,1.20944513,20865.0,20864.0,0.01887431]
[1673814059178,0.55073896,20865.0,20864.0,0.01887431]
[1673814059180,0.40703475,20865.0,20864.0,0.01887431]
[1673814059448,0.19153109,20865.0,20864.0,0.65326174]
[1673814059719,0.04789082,20865.0,20864.0,0.71798791]
[1673814061786,0.04771582,20865.0,20864.0,0.71798791]
[1673814064997,0.19135609,20865.0,20864.0,0.71798791]
[1673814065771,0.19135609,20865.0,20864.0,0.71929791]
[1673814066020,0.04771582,20865.0,20864.0,0.71929791]
[1673814070353,0.19135609,20865.0,20864.0,0.08491048]
[1673814070603,0.35602709,20865.0,20864.0,0.01958431]
[1673814070860,0.19135609,20865.0,20864.0,0.01958431]
[1673814071114,0.04771582,20865.0,20864.0,0.01958431]
[1673814071364,0.04771582,20865.0,20864.0,0.50922397]
[1673814071612,0.04771582,20865.0,20864.0,0.63620613]
[1673814074776,0.04771582,20865.0,20864.0,0.63489613]
[1673814076281,0.04771582,20865.0,20864.0,0.93489613]
[1673814076554,0.04771582,20865.0,20864.0,0.63489613]
[1673814078320,0.04771582,20865.0,20864.0,0.50791397]
[1673814083750,0.04771582,20865.0,20864.0,0.65144897]
[1673814084015,0.04771582,20865.0,20864.0,0.50791397]
[1673814086009,0.04771582,20865.0,20864.0,0.57640931]
[1673814086260,0.04771582,20865.0,20864.0,2.72746622]
[1673814086529,0.04771582,20865.0,20864.0,2.84794995]
[1673814087557,0.04771582,20865.0,20864.0,2.99149824]
[1673814087808,0.04771582,20865.0,20864.0,2.84794995]
[1673814088029,0.04763888,20865.0,20864.0,2.59285887]
[1673814088573,0.04763888,20865.0,20864.0,3.2156619]
[1673814088833,0.04763888,20865.0,20864.0,2.92859755]
[1673814089084,0.04763888,20865.0,20864.0,2.68369025]
[1673814089336,0.04763888,20865.0,20864.0,3.32907579]
[1673814089654,0.04763888,20865.0,20864.0,3.04222739]
[1673814090612,0.04763888,20865.0,20864.0,3.47897365]
[1673814091141,0.05241363,20867.0,20864.0,3.47513874]
[1673814091403,0.05241363,20867.0,20866.0,0.37263808]
[1673814091669,0.00326501,20867.0,20866.0,1.47311808]
[1673814092230,0.00326501,20867.0,20866.0,2.27421787]
[1673814092430,0.00826501,20867.0,20866.0,2.27421787]
[1673814092675,0.00326501,20867.0,20866.0,1.47311808]
[1673814092930,0.00826501,20867.0,20866.0,1.51511808]
[1673814093182,0.00326501,20867.0,20866.0,1.47311808]
[1673814093661,0.00326501,20867.0,20866.0,1.95733671]
[1673814094183,0.00826501,20867.0,20866.0,1.37675063]
[1673814094431,0.00826501,20867.0,20866.0,1.07675063]
[1673814094954,0.00826501,20867.0,20866.0,0.96215063]
[1673814095455,0.57278694,20867.0,20866.0,0.042]
[1673814096462,0.73745794,20867.0,20866.0,0.042]
[1673814096714,0.57278694,20867.0,20866.0,0.042]
[1673814096977,0.57278694,20867.0,20865.0,0.57835613]
[1673814097271,0.56778694,20867.0,20865.0,0.57835613]
[1673814098224,0.56778694,20867.0,20865.0,0.0296042]
[1673814098470,0.62078694,20867.0,20865.0,0.0336042]
[1673814098727,0.56803933,20866.0,20865.0,0.0336042]
[1673814100250,0.56803933,20866.0,20865.0,0.0296042]
[1673814100494,0.61603933,20866.0,20865.0,0.0336042]
[1673814101477,0.61603933,20866.0,20865.0,0.12722514]
[1673814102230,0.048,20866.0,20865.0,0.12722514]
[1673814102478,0.048,20866.0,20865.0,0.78058986]
[1673814104024,0.048,20866.0,20865.0,1.08058986]
[1673814104275,0.048,20866.0,20865.0,1.40185586]
[1673814105296,0.048,20866.0,20865.0,1.08058986]
[1673814106606,0.048,20866.0,20865.0,1.40185586]
[1673814107651,0.048,20866.0,20865.0,1.51635586]
[1673814107893,0.048,20866.0,20865.0,1.65969394]
[1673814108657,0.048,20866.0,20865.0,1.51635586]
[1673814108914,0.048,20866.0,20865.0,1.65969394]
[1673814109422,0.04790466,20866.0,20865.0,1.51635586]
[1673814110007,0.04790466,20866.0,20865.0,1.65969394]
[1673814110496,0.04790466,20866.0,20865.0,2.13896494]
[1673814110739,0.04790466,20866.0,20865.0,2.61861396]
[1673814111490,0.04790466,20866.0,20865.0,1.96524924]
[1673814111733,0.04790466,20866.0,20865.0,2.78043279]
[1673814112244,0.04790466,20866.0,20865.0,3.68254776]
[1673814112489,0.04790466,20866.0,20865.0,3.06710895]
[1673814112734,0.04790466,20866.0,20865.0,3.70387402]
[1673814112988,0.04790466,20866.0,20865.0,3.41719786]
[1673814113501,0.04790466,20866.0,20865.0,3.56052956]
[1673814113758,0.04790466,20866.0,20865.0,2.60200793]
[1673814114015,0.04790466,20866.0,20865.0,1.40613527]
[1673814115515,0.04790466,20866.0,20865.0,1.54946697]
[1673814115774,0.04790466,20866.0,20865.0,1.40613527]
[1673814116264,0.04790466,20866.0,20865.0,1.54946697]
[1673814118213,0.04790466,20866.0,20865.0,1.29163527]
[1673814118468,0.04790466,20866.0,20865.0,1.43496697]
[1673814119207,0.04790466,20866.0,20865.0,1.64997409]
[1673814119721,0.04790466,20866.0,20865.0,1.43496697]
[1673814120492,0.04790466,20866.0,20865.0,1.64997409]
[1673814121529,0.04790466,20866.0,20865.0,1.43496697]
[1673814123108,0.04790466,20866.0,20865.0,3.32433948]
[1673814123606,0.04790466,20866.0,20865.0,3.61101564]
[1673814127029,0.04790466,20866.0,20865.0,3.39600852]
[1673814127529,0.04790466,20866.0,20865.0,3.86807057]
[1673814128285,0.04790466,20866.0,20865.0,3.50970852]
[1673814129113,0.04790466,20866.0,20865.0,3.86807057]
[1673814130784,0.04790466,20866.0,20865.0,3.50970852]
[1673814131006,0.04790466,20866.0,20865.0,3.86807057]
[1673814131811,0.04790466,20866.0,20865.0,3.50970852]
[1673814132069,0.04790466,20866.0,20865.0,3.86807057]
[1673814132579,0.04778982,20866.0,20865.0,3.86807057]
[1673814133685,0.04778982,20866.0,20865.0,3.97375934]
[1673814133944,0.01908809,20866.0,20865.0,3.82521355]
[1673814134214,0.01908809,20866.0,20865.0,4.64375348]
[1673814134476,0.00573233,20866.0,20865.0,4.2145938]
[1673814134734,0.00573233,20866.0,20865.0,5.61349029]
[1673814134998,0.00573233,20866.0,20865.0,4.2145938]
[1673814135252,0.00326501,20867.0,20865.0,6.08669198]
[1673814135744,0.00326501,20867.0,20866.0,3.86050111]
[1673814135763,0.00326501,20867.0,20866.0,3.86080111]
[1673814136001,0.00326501,20867.0,20866.0,3.99971637]
[1673814136246,0.00326501,20867.0,20866.0,4.81137646]
[1673814136499,0.00326501,20867.0,20866.0,4.81138002]
[1673814137014,0.00326501,20867.0,20866.0,4.92238002]
[1673814138106,0.00326501,20867.0,20866.0,4.11071637]
[1673814139094,0.00326501,20867.0,20866.0,4.92047935]
[1673814139635,0.00326501,20867.0,20866.0,5.28668104]
[1673814139862,0.00426501,20867.0,20866.0,5.36808595]
[1673814140125,0.00326501,20867.0,20866.0,5.28608595]
[1673814140378,0.00426501,20867.0,20866.0,5.36808595]
[1673814141167,0.00426501,20867.0,20866.0,5.36805388]
[1673814141417,0.00326501,20867.0,20866.0,5.28605388]
[1673814141681,0.00426501,20867.0,20866.0,4.93848055]
[1673814141962,0.00426501,20867.0,20866.0,5.36792287]
[1673814143455,0.00426501,20867.0,20866.0,3.13546378]
[1673814143701,0.00426501,20867.0,20866.0,3.0162272]
[1673814144507,0.00426501,20867.0,20866.0,3.57751562]
[1673814144762,0.00426501,20867.0,20866.0,4.04919869]
[1673814146420,0.00426501,20867.0,20866.0,3.69123358]
[1673814146674,0.00426501,20867.0,20866.0,4.04919869]
[1673814146926,0.00426501,20867.0,20866.0,3.69123358]
[1673814147202,0.00426501,20867.0,20866.0,4.04919869]
[1673814147700,0.00426501,20867.0,20866.0,3.69123358]
[1673814148205,0.00426501,20867.0,20866.0,3.90605428]
[1673814148517,0.00426501,20867.0,20866.0,0.89922978]
[1673814148730,0.00426501,20867.0,20866.0,0.082]
[1673814148731,0.89834354,20867.0,20866.0,0.082]
[1673814149500,0.89734354,20867.0,20865.0,0.74366565]
[1673814149750,0.67034354,20867.0,20866.0,0.076]
[1673814149994,0.78414354,20867.0,20866.0,0.076]
[1673814150759,0.78414354,20867.0,20866.0,0.40344863]
[1673814151004,0.00426501,20867.0,20866.0,1.12064378]
[1673814151271,0.00326501,20867.0,20866.0,1.36690978]
[1673814151523,0.02126501,20867.0,20866.0,1.36790978]
[1673814151774,0.02126501,20867.0,20866.0,1.58173048]
[1673814151775,0.00326501,20867.0,20866.0,1.58173048]
[1673814152030,0.00426501,20867.0,20866.0,1.65673048]
[1673814152288,0.00326501,20867.0,20866.0,1.58173048]
[1673814152543,0.00426501,20867.0,20866.0,1.65673048]
[1673814152812,0.00426501,20867.0,20866.0,1.87963891]
[1673814153063,0.00426501,20867.0,20866.0,2.76636779]
[1673814153822,0.00426501,20867.0,20866.0,2.95264983]
[1673814154074,0.00199603,20867.0,20866.0,3.23920521]
[1673814154330,0.00199603,20867.0,20866.0,3.46757825]
[1673814154580,0.00199603,20867.0,20866.0,3.09619311]
[1673814155096,0.00199603,20867.0,20866.0,3.23920521]
[1673814155586,0.00199603,20867.0,20866.0,3.81263237]
[1673814155805,0.00199603,20867.0,20866.0,3.23920521]
[1673814156544,0.00199603,20867.0,20866.0,3.41817798]
[1673814156804,0.00199603,20867.0,20866.0,3.0940751]
[1673814157042,0.00199603,20867.0,20866.0,2.8790601]
[1673814157302,0.00199603,20867.0,20866.0,3.23702521]
[1673814157723,0.00199603,20867.0,20866.0,3.37013664]
[1673814157940,0.00199603,20867.0,20866.0,2.8790601]
[1673814158422,0.00199603,20867.0,20866.0,3.09411452]
[1673814158871,0.00199603,20867.0,20866.0,3.09412562]
[1673814159121,0.00199603,20867.0,20866.0,3.23702521]
[1673814159562,0.00199603,20867.0,20866.0,2.8790601]
[1673814159790,0.00199603,20867.0,20866.0,2.95046983]
[1673814162200,0.00199603,20867.0,20866.0,2.59250472]
[1673814167092,0.00199603,20867.0,20866.0,3.20528157]
[1673814167337,0.00199603,20867.0,20866.0,2.59250472]
[1673814167588,0.00199603,20867.0,20866.0,2.51750472]
[1673814167589,0.00099603,20867.0,20866.0,2.51750472]
[1673814167836,0.00099603,20867.0,20866.0,2.62450472]
[1673814168377,0.00099603,20867.0,20866.0,2.51750472]
[1673814168886,0.00099603,20867.0,20866.0,2.62450472]
[1673814170606,0.00099603,20867.0,20866.0,3.21254497]
[1673814170858,0.00099603,20867.0,20866.0,2.62450472]
[1673814171882,0.00099603,20867.0,20866.0,3.13597519]
[1673814173108,0.00099603,20867.0,20866.0,2.62450472]
[1673814173610,0.00099603,20867.0,20866.0,2.14525672]
[1673814173859,0.00099603,20867.0,20866.0,2.62450472]
[1673814174118,0.0005084,20867.0,20866.0,2.62450472]
[1673814174627,0.0005084,20867.0,20866.0,2.99272163]
[1673814174865,0.0005084,20867.0,20866.0,3.42216395]
[1673814175368,0.0005084,20867.0,20866.0,2.9926664]
[1673814175631,0.0005084,20867.0,20866.0,3.42210872]
[1673814176125,0.0005084,20867.0,20866.0,2.9926664]
[1673814176632,0.0005084,20867.0,20866.0,3.62450472]
[1673814177969,0.0005084,20867.0,20866.0,4.42210361]
[1673814178962,0.0005084,20867.0,20866.0,4.85695789]
[1673814179214,0.0005084,20867.0,20866.0,4.42751557]
[1673814179464,0.00017312,20867.0,20866.0,5.81501554]
[1673814179970,0.00017312,20867.0,20866.0,5.38016126]
[1673814180266,0.00017312,20867.0,20866.0,4.42319406]
[1673814180505,0.00017312,20867.0,20866.0,3.99266129]
[1673814180743,0.00017312,20867.0,20866.0,5.38015528]
[1673814181245,0.00017312,20867.0,20866.0,4.42318764]
[1673814182473,0.00017312,20867.0,20866.0,5.37822869]
[1673814183757,0.00017312,20867.0,20866.0,5.49212869]
[1673814186810,0.00017312,20867.0,20866.0,7.84824738]
[1673814187083,0.00752774,20870.0,20867.0,0.10012492]
[1673814187367,0.00752774,20870.0,20868.0,4.35262972]
[1673814187622,0.00752774,20870.0,20869.0,2.85424794]
[1673814187888,0.00752774,20870.0,20869.0,3.33342694]
[1673814188693,0.00752774,20870.0,20869.0,3.81062863]
[1673814188954,0.00752774,20870.0,20869.0,3.92532863]
[1673814189216,0.00752774,20870.0,20869.0,4.02877726]
[1673814189462,0.00261405,20870.0,20869.0,5.40941488]
[1673814189717,0.00261405,20870.0,20869.0,4.11977726]
[1673814189966,0.00261405,20870.0,20869.0,4.02877726]
[1673814190214,0.008313,20872.0,20870.0,0.2132035]
[1673814190460,0.008313,20872.0,20871.0,2.45150277]
[1673814190724,0.008313,20872.0,20871.0,3.65238137]
[1673814191228,0.008313,20872.0,20871.0,3.21752709]
[1673814191501,0.008313,20872.0,20871.0,4.23303169]
[1673814191826,0.008313,20872.0,20871.0,4.34723169]
[1673814192276,0.007723,20873.0,20872.0,0.1]
[1673814192544,0.007723,20873.0,20872.0,3.87874241]
[1673814192803,0.007723,20873.0,20872.0,4.4506519]
[1673814193105,0.007723,20873.0,20872.0,4.83108943]
[1673814193310,0.007723,20873.0,20872.0,2.74399959]
[1673814193560,0.007723,20873.0,20872.0,2.83499959]
[1673814194099,0.00868517,20874.0,20873.0,0.54769213]
[1673814194320,0.00868517,20874.0,20873.0,3.45866996]
[1673814194623,0.00868517,20874.0,20873.0,3.77682715]
[1673814195387,0.00868517,20874.0,20873.0,3.49044241]
[1673814195896,0.00868517,20874.0,20873.0,3.37574241]
[1673814196148,0.00868517,20874.0,20873.0,2.40886087]
[1673814196401,0.00868517,20874.0,20873.0,2.19415231]
[1673814196922,0.00868517,20874.0,20873.0,2.10315231]
[1673814197175,0.00868517,20874.0,20873.0,2.19415231]
[1673814203216,0.00868517,20874.0,20873.0,2.40886087]
[1673814203715,0.00868517,20874.0,20873.0,2.20588187]
[1673814203963,0.00868517,20874.0,20873.0,3.0207896]
[1673814204461,0.00868517,20874.0,20873.0,3.54744032]
[1673814204707,0.00868517,20874.0,20873.0,3.30717434]
[1673814204961,0.00868517,20874.0,20873.0,3.57861837]
[1673814205224,0.00868517,20874.0,20873.0,3.0207896]
[1673814205944,0.00868517,20874.0,20873.0,3.52722826]
[1673814206161,0.00868517,20874.0,20873.0,3.0207896]
[1673814206639,0.00868517,20874.0,20873.0,3.30717434]
[1673814207463,0.00868517,20874.0,20873.0,3.00717434]
[1673814207717,0.00868517,20874.0,20873.0,2.48834172]
[1673814207967,0.00868517,20874.0,20873.0,2.25822859]
[1673814208215,0.00868517,20874.0,20873.0,2.31224436]
[1673814208689,0.00868517,20874.0,20873.0,2.0975358]
[1673814208926,0.00868517,20874.0,20873.0,2.84271071]
[1673814209437,0.00868517,20874.0,20873.0,1.97569926]
[1673814209690,0.00868517,20874.0,20873.0,2.30230932]
[1673814209930,0.00868517,20874.0,20873.0,2.20995921]
[1673814210170,0.00868517,20874.0,20873.0,1.99525065]
[1673814210414,0.00868517,20874.0,20873.0,2.20995921]
[1673814210924,0.00868517,20874.0,20873.0,2.53350716]
[1673814211175,0.00868517,20874.0,20873.0,2.86427388]
[1673814211420,0.00868517,20874.0,20873.0,3.02120281]
[1673814211664,0.00868517,20874.0,20873.0,3.16432295]
[1673814212192,0.00868517,20874.0,20873.0,3.30758755]
[1673814213187,0.00868517,20874.0,20873.0,3.09287899]
[1673814213712,0.00868517,20874.0,20873.0,3.45085955]
[1673814213953,0.00450012,20874.0,20873.0,3.09287899]
[1673814214208,0.00450012,20874.0,20873.0,3.45085955]
[1673814214467,0.00450012,20874.0,20873.0,3.09287899]
[1673814214719,0.00450012,20874.0,20873.0,3.45085955]
[1673814214977,0.00450012,20874.0,20873.0,3.09287899]
[1673814215226,0.00450012,20874.0,20873.0,3.30769208]
[1673814215737,0.00450012,20874.0,20873.0,3.86653032]
[1673814216245,0.00450012,20874.0,20873.0,3.58014558]
[1673814216514,0.00450012,20874.0,20873.0,3.86653032]
[1673814216766,0.00450012,20874.0,20873.0,3.46554558]
[1673814217060,0.00450012,20874.0,20873.0,3.75193032]
[1673814218504,0.00450012,20874.0,20873.0,3.46554558]
[1673814218770,0.00450012,20874.0,20873.0,3.89509779]
[1673814219781,0.00450012,20874.0,20873.0,3.46576734]
[1673814220054,0.00450012,20874.0,20873.0,3.30913773]
[1673814220305,0.00450012,20874.0,20873.0,1.90552826]
[1673814220558,0.00450012,20874.0,20873.0,1.85483126]
[1673814221875,0.00450012,20874.0,20873.0,2.15483126]
[1673814222636,0.00450012,20874.0,20873.0,1.85483126]
[1673814222891,0.00450012,20874.0,20873.0,2.01146087]
[1673814223144,0.00450012,20874.0,20873.0,2.15483126]
[1673814223691,0.00450012,20874.0,20873.0,2.36986611]
[1673814223937,0.00450012,20874.0,20873.0,4.02469229]
[1673814224983,0.00450012,20874.0,20873.0,3.80965744]
[1673814225266,0.00450012,20874.0,20873.0,4.167638]
[1673814225776,0.00450012,20874.0,20873.0,3.88125326]
[1673814226019,0.23957419,20878.0,20874.0,0.50139713]
[1673814226307,0.1144,20876.0,20875.0,0.25671095]
[1673814227043,0.1144,20876.0,20875.0,0.1132035]
[1673814227547,0.1144,20876.0,20875.0,0.25671095]
[1673814227795,0.1144,20876.0,20875.0,0.34771095]
[1673814228304,0.1144,20876.0,20875.0,0.2042035]
[1673814229068,0.1144,20876.0,20875.0,0.091]
[1673814229790,0.2291,20876.0,20875.0,0.091]
[1673814237263,0.2291,20876.0,20875.0,0.64787667]
[1673814238543,0.2291,20876.0,20875.0,0.79138412]
[1673814238799,0.2291,20876.0,20875.0,0.64787667]
[1673814238995,0.2291,20876.0,20875.0,0.79138412]
[1673814239492,0.2291,20876.0,20875.0,0.64787667]
[1673814239978,0.2291,20876.0,20875.0,0.64909667]
[1673814241830,0.1147,20876.0,20875.0,0.64909667]
[1673814242214,0.1147,20876.0,20875.0,0.79260412]
[1673814242758,0.1147,20876.0,20875.0,1.41387012]
[1673814243008,0.1147,20876.0,20875.0,2.58720751]
[1673814243305,0.1147,20876.0,20875.0,1.62913129]
[1673814243549,0.1147,20876.0,20875.0,3.30419569]
[1673814243795,0.1144,20877.0,20875.0,2.98292969]
[1673814244094,0.1144,20877.0,20876.0,0.321266]
[1673814244346,0.1144,20877.0,20875.0,1.48690629]
[1673814244870,0.1144,20877.0,20876.0,0.76477345]
[1673814245132,0.1144,20877.0,20876.0,0.621266]
[1673814245568,0.1144,20877.0,20876.0,1.10948816]
[1673814245569,0.1144,20877.0,20876.0,1.25299561]
[1673814245816,0.1144,20877.0,20876.0,0.58022216]
[1673814247555,0.1144,20877.0,20876.0,1.20274761]
[1673814247805,0.1144,20877.0,20876.0,1.52401361]
[1673814248048,0.1144,20877.0,20876.0,1.20274761]
[1673814248291,0.1144,20877.0,20876.0,1.05924016]
[1673814248780,0.1144,20878.0,20876.0,1.05924016]
[1673814249039,0.1144,20878.0,20876.0,0.58022216]
[1673814249763,0.1144,20878.0,20876.0,0.55291416]
[1673814249974,0.25791887,20878.0,20876.0,0.55291416]
[1673814250217,0.1144,20878.0,20876.0,0.93993216]
[1673814250486,0.1144,20878.0,20876.0,1.03193216]
[1673814250746,0.1144,20878.0,20876.0,1.17543961]
[1673814250995,0.1144,20878.0,20876.0,0.55291416]
[1673814252884,0.25791887,20878.0,20876.0,0.55291416]
[1673814253166,0.30530066,20878.0,20876.0,0.55291416]
[1673814254954,0.1144,20878.0,20876.0,0.69642161]
[1673814255200,0.1144,20878.0,20877.0,0.64256211]
[1673814256730,0.15259042,20879.0,20877.0,0.68056211]
[1673814256991,0.15259042,20879.0,20877.0,1.15955611]
[1673814257451,0.00907155,20879.0,20877.0,1.15955611]
[1673814257703,0.00907155,20879.0,20877.0,1.12155611]
[1673814257975,0.15259042,20879.0,20878.0,0.64097343]
[1673814258992,0.00907155,20879.0,20878.0,0.64097343]
[1673814259246,0.01007155,20879.0,20878.0,0.64197343]
[1673814260224,0.01007155,20879.0,20878.0,1.12094643]
[1673814260686,0.00907155,20879.0,20878.0,1.11994643]
[1673814260932,0.00907155,20879.0,20878.0,1.15794643]
[1673814261434,0.00907155,20879.0,20878.0,1.15294643]
[1673814262399,0.15259042,20879.0,20878.0,1.15294643]
[1673814263954,0.12377155,20879.0,20878.0,1.15294643]
[1673814264496,0.26729042,20879.0,20878.0,1.15294643]
[1673814265899,0.12377155,20879.0,20878.0,1.15294643]
[1673814267247,0.26729042,20879.0,20878.0,1.15294643]
[1673814267702,0.12377155,20879.0,20878.0,1.15294643]
[1673814268461,0.26729042,20879.0,20878.0,1.15294643]
[1673814268680,0.12377155,20879.0,20878.0,1.15294643]
[1673814272466,0.00907155,20879.0,20878.0,1.00769895]
[1673814272719,0.00907155,20879.0,20878.0,3.38328257]
[1673814273500,0.00907155,20879.0,20878.0,2.55075238]
[1673814274514,0.00907155,20879.0,20878.0,2.83776777]
[1673814276042,0.00907155,20879.0,20878.0,2.7372066]
[1673814276299,0.00907155,20879.0,20878.0,3.09474487]
[1673814276800,0.00907155,20879.0,20878.0,2.80817177]
[1673814277277,0.00907155,20879.0,20878.0,3.05661178]
[1673814277762,0.00907155,20879.0,20878.0,2.86217177]
[1673814278666,0.00907155,20879.0,20878.0,2.77017177]
[1673814278885,0.00907155,20879.0,20878.0,2.86217177]
[1673814279143,0.00907155,20879.0,20878.0,3.05661026]
[1673814279395,0.00907155,20879.0,20878.0,2.7906297]
[1673814279649,0.00907155,20879.0,20878.0,3.0053978]
[1673814280691,0.00907155,20879.0,20878.0,2.7906297]
[1673814280957,0.00907155,20879.0,20878.0,3.37046627]
[1673814281442,0.00907155,20879.0,20878.0,3.08402778]
[1673814281652,0.00907155,20879.0,20878.0,3.22719313]
[1673814281946,0.00907155,20879.0,20878.0,2.74743109]
[1673814282187,0.00907155,20879.0,20878.0,2.60426574]
[1673814282500,0.00900675,20879.0,20878.0,2.74743797]
[1673814282740,0.00900675,20879.0,20878.0,2.89070423]
[1673814283589,0.00900675,20879.0,20878.0,2.60426574]
[1673814284490,0.00900675,20879.0,20878.0,2.89070423]
[1673814285023,0.00900675,20879.0,20878.0,3.14861026]
[1673814285024,0.00436697,20879.0,20878.0,3.14861026]
[1673814285280,0.00436697,20879.0,20878.0,3.5804053]
[1673814285540,0.00436697,20879.0,20878.0,2.7906297]
[1673814285804,0.00436697,20879.0,20878.0,3.14861026]
[1673814286060,0.00436697,20879.0,20878.0,3.29396681]
[1673814286308,0.00436697,20879.0,20878.0,3.20196681]
[1673814286570,0.00436697,20879.0,20878.0,3.29396681]
[1673814286822,0.00436697,20879.0,20878.0,3.20196681]
[1673814287072,0.00436697,20879.0,20878.0,2.86217177]
[1673814287318,0.00436697,20879.0,20878.0,3.1482905]
[1673814287584,0.00436697,20879.0,20878.0,2.79030994]
[1673814288115,0.00436697,20879.0,20878.0,2.79088643]
[1673814288705,0.00436697,20879.0,20878.0,3.14886699]
[1673814289137,0.00436697,20879.0,20878.0,2.79088643]
[1673814289395,0.00436697,20879.0,20878.0,3.00546601]
[1673814289656,0.00436697,20879.0,20878.0,2.79088643]
[1673814290173,0.00436697,20879.0,20878.0,3.14886699]
[1673814290457,0.00436697,20879.0,20878.0,2.79088643]
[1673814290718,0.00436697,20879.0,20878.0,3.00547568]
[1673814290972,0.00436697,20879.0,20878.0,2.79088643]
[1673814291742,0.00436697,20879.0,20878.0,3.14886699]
[1673814292899,0.00436697,20879.0,20878.0,2.79088643]
[1673814293122,0.00436697,20879.0,20878.0,3.14886699]
[1673814293905,0.00436697,20879.0,20878.0,3.26276699]
[1673814294180,0.00436697,20879.0,20878.0,2.97664826]
[1673814295210,0.00436697,20879.0,20878.0,3.26274734]
[1673814295454,0.00436697,20879.0,20878.0,3.26276058]
[1673814295707,0.00436697,20879.0,20878.0,2.97664826]
[1673814297953,0.00436697,20879.0,20878.0,3.52766443]
[1673814298212,0.00436697,20879.0,20878.0,3.64236443]
[1673814298942,0.00436697,20879.0,20878.0,3.55036443]
[1673814299190,0.00436697,20879.0,20878.0,3.64136443]
[1673814299727,0.00436697,20879.0,20878.0,3.99896666]
[1673814299983,0.00436697,20879.0,20878.0,3.56717162]
[1673814300501,0.00436697,20879.0,20878.0,3.20956939]
[1673814301245,0.00436697,20879.0,20878.0,3.23230589]
[1673814301494,0.00436697,20879.0,20878.0,3.23841153]
[1673814301744,0.00436697,20879.0,20878.0,2.95229438]
[1673814302789,0.00436697,20879.0,20878.0,3.25229438]
[1673814303299,0.00436697,20879.0,20878.0,3.39531759]
[1673814303574,0.00436697,20879.0,20878.0,2.43746619]
[1673814303833,0.00436697,20879.0,20878.0,2.11620019]
[1673814304128,0.00436697,20879.0,20878.0,3.07405074]
[1673814304371,0.00436697,20879.0,20878.0,3.39531674]
[1673814304882,0.00436697,20879.0,20878.0,3.25223811]
[1673814305124,0.00436697,20879.0,20878.0,3.39536493]
[1673814305344,0.00436697,20879.0,20878.0,3.53835526]
[1673814305634,0.00436697,20879.0,20878.0,2.93097211]
[1673814305886,0.00436697,20879.0,20878.0,3.07413709]
[1673814306141,0.00436697,20879.0,20878.0,3.07413803]
[1673814306400,0.00436697,20879.0,20878.0,2.93097211]
[1673814306727,0.00436697,20879.0,20878.0,3.07415282]
[1673814306923,0.00436697,20879.0,20878.0,3.25223811]
[1673814307180,0.00436697,20879.0,20878.0,3.07414939]
[1673814307436,0.00436697,20879.0,20878.0,2.93097211]
[1673814307688,0.00436697,20879.0,20878.0,3.21708926]
[1673814308214,0.00436697,20879.0,20878.0,3.25223811]
[1673814308481,0.00436697,20879.0,20878.0,3.21708926]
[1673814308740,0.00436697,20879.0,20878.0,2.91708926]
[1673814309028,0.00436697,20879.0,20878.0,0.57110349]
[1673814309029,0.17697706,20879.0,20878.0,0.57110349]
[1673814309319,0.34164806,20879.0,20878.0,0.57110349]
[1673814310292,0.34164806,20879.0,20878.0,0.00057649]
[1673814310549,0.34264806,20879.0,20878.0,0.08557649]
[1673814311579,0.34164806,20879.0,20878.0,0.00057649]
[1673814311926,0.29034806,20879.0,20878.0,0.00057649]
[1673814312145,1.13083987,20879.0,20878.0,0.00057649]
[1673814312403,3.16730125,20879.0,20878.0,0.00057649]
[1673814312659,2.88845677,20879.0,20878.0,0.00057649]
[1673814312951,2.56275574,20879.0,20878.0,0.00057649]
[1673814313220,2.64781391,20879.0,20878.0,0.00057649]
[1673814313464,3.18894319,20879.0,20878.0,0.08557649]
[1673814313716,3.18894319,20879.0,20878.0,0.00057649]
[1673814313717,3.47452391,20879.0,20878.0,0.00057649]
[1673814313976,3.48252391,20879.0,20878.0,0.00757649]
[1673814314230,3.67004536,20879.0,20878.0,0.00757649]
[1673814314579,2.84541319,20879.0,20878.0,7.649e-05]
[1673814314743,2.519773,20879.0,20873.0,0.66691368]
[1673814314999,0.2293,20874.0,20873.0,0.85763963]
[1673814315270,0.393971,20874.0,20873.0,0.66691368]
[1673814315514,0.1147,20874.0,20873.0,0.80059034]
[1673814315782,0.12788966,20876.0,20873.0,0.80059034]
[1673814316010,0.12788966,20876.0,20874.0,0.08297547]
[1673814316995,0.14188966,20876.0,20874.0,0.08997547]
[1673814317244,0.14188966,20876.0,20874.0,0.08297547]
[1673814317485,0.14188966,20876.0,20874.0,0.08397547]
[1673814317742,0.14288966,20876.0,20874.0,0.08397547]
[1673814317983,0.12788966,20876.0,20874.0,0.08297547]
[1673814318720,0.14288966,20876.0,20874.0,0.70587831]
[1673814319420,0.14288966,20876.0,20875.0,0.07058783]
[1673814319711,0.12888966,20876.0,20875.0,0.07058783]
[1673814320457,0.12788966,20876.0,20875.0,0.07058783]
[1673814320704,0.12888966,20876.0,20875.0,0.10958783]
[1673814322178,0.12888966,20876.0,20875.0,0.039]
[1673814322430,0.29356066,20876.0,20875.0,0.039]
[1673814322933,0.12888966,20876.0,20875.0,0.039]
[1673814323687,0.29356066,20876.0,20875.0,0.039]
[1673814323937,0.12888966,20876.0,20875.0,0.039]
[1673814324443,0.12888966,20876.0,20875.0,0.16129603]